bitfinex-derivatives/quotes_BTCF0:USTF0_20241019
["timestamp","ask_amount","ask_price","bid_price","bid_amount"]
[1729296678568,0.0001,68420.0,68419.0,0.073075]
[1729296681450,0.1101,68420.0,68419.0,0.073075]
[1729296681651,0.0001,68420.0,68419.0,0.073075]
[1729296681862,0.1101,68420.0,68419.0,0.073075]
[1729296687866,0.073077,68417.0,68416.0,0.0001]
[1729296688160,0.073177,68417.0,68416.0,0.0001]
[1729296689563,0.183177,68417.0,68416.0,0.0001]
[1729296694766,0.19667684,68417.0,68416.0,0.0001]
[1729296698774,0.19907684,68417.0,68416.0,0.0001]
[1729296703072,0.30907684,68417.0,68416.0,0.0001]
[1729296703273,0.19907684,68417.0,68416.0,0.0001]
[1729296703872,0.30907684,68417.0,68416.0,0.0001]
[1729296706279,0.30907684,68417.0,68410.0,0.0001]
[1729296706280,0.073083,68411.0,68410.0,0.0001]
[1729296706475,0.293183,68411.0,68410.0,0.0001]
[1729296706874,0.356283,68411.0,68410.0,0.0001]
[1729296709888,1.394803,68411.0,68410.0,0.0001]
[1729296710084,0.073085,68410.0,68395.0,0.3608]
[1729296710285,0.1101,68396.0,68395.0,0.433901]
[1729296712885,0.0001,68396.0,68395.0,0.433901]
[1729296713089,0.0001,68396.0,68395.0,0.43847262]
[1729296713600,0.0001,68396.0,68395.0,0.4384727]
[1729296715602,0.0001,68396.0,68395.0,0.433901]
[1729296715794,0.0001,68396.0,68395.0,0.4384726]
[1729296719604,0.0001,68396.0,68395.0,0.43847258]
[1729296722109,0.0001,68396.0,68395.0,0.43847266]
[1729296722592,0.0001,68396.0,68395.0,0.43847249]
[1729296724307,0.0001,68396.0,68395.0,0.45173292]
[1729296725010,0.0001,68396.0,68395.0,0.43847249]
[1729296726008,0.0001,68396.0,68395.0,0.433901]
[1729296726199,0.0001,68396.0,68395.0,0.43847262]
[1729296729696,0.0001,68396.0,68395.0,0.43847261]
[1729296733398,0.0001,68396.0,68395.0,0.433901]
[1729296733611,0.0001,68396.0,68395.0,0.4384726]
[1729296735000,0.0732,68396.0,68395.0,0.4384726]
[1729296735307,0.0732,68396.0,68395.0,0.073101]
[1729296743714,0.0001,68396.0,68395.0,0.073101]
[1729296744215,0.0732,68396.0,68395.0,0.073101]
[1729296746806,0.0001,68396.0,68395.0,0.073101]
[1729296749109,0.0025,68396.0,68395.0,0.073101]
[1729296750408,0.01361231,68398.0,68397.0,0.073098]
[1729296750615,0.0303,68399.0,68395.0,0.183101]
[1729296750815,0.0001,68396.0,68395.0,0.183101]
[1729296754424,0.0001,68396.0,68395.0,0.073101]
[1729296754619,0.1101,68396.0,68395.0,0.073101]
[1729296759012,0.1101,68396.0,68395.0,0.433901]
[1729296760819,0.1832,68396.0,68395.0,0.433901]
[1729296761218,0.1832,68396.0,68395.0,0.073101]
[1729296763439,0.1832,68396.0,68395.0,0.433901]
[1729296771342,0.1832,68396.0,68395.0,0.073101]
[1729296771548,0.1832,68396.0,68395.0,0.433901]
[1729296772240,0.1832,68396.0,68395.0,0.073101]
[1729296773134,0.1832,68396.0,68395.0,0.433901]
[1729296778045,0.1832,68396.0,68395.0,0.073101]
[1729296779247,0.1101,68396.0,68395.0,0.073101]
[1729296798055,0.0001,68396.0,68395.0,0.104901]
[1729296799864,0.0025,68396.0,68395.0,0.104901]
[1729296806164,0.0025,68396.0,68395.0,0.465701]
[1729296812170,0.0025,68396.0,68395.0,0.47027247]
[1729296812471,0.0025,68396.0,68395.0,0.465701]
[1729296820773,0.0025,68396.0,68395.0,0.104901]
[1729296820975,0.0025,68396.0,68395.0,0.465701]
[1729296821766,0.0025,68396.0,68395.0,0.433901]
[1729296822678,0.1125,68396.0,68395.0,0.433901]
[1729296823479,0.0304,68407.0,68395.0,0.433901]
[1729296823678,0.04749966,68406.0,68405.0,0.07309]
[1729296824570,0.3608,68422.0,68420.0,0.073073]
[1729296824870,0.1411,68421.0,68420.0,0.073073]
[1729296825078,0.5196,68424.0,68418.0,0.3608]
[1729296825271,0.0001,68419.0,68418.0,0.433876]
[1729296840687,0.183175,68419.0,68418.0,0.433876]
[1729296840990,0.1101,68419.0,68418.0,0.433876]
[1729296850586,0.1125,68419.0,68418.0,0.433876]
[1729296856897,0.0025,68419.0,68418.0,0.433876]
[1729296857398,0.0025,68419.0,68418.0,0.497276]
[1729296875316,0.0025,68419.0,68418.0,0.136476]
[1729296875709,0.0025,68419.0,68418.0,0.497276]
[1729296876304,0.0025,68419.0,68418.0,0.136476]
[1729296876510,0.0025,68419.0,68418.0,0.497276]
[1729296877318,0.0025,68419.0,68418.0,0.136476]
[1729296877520,0.0025,68419.0,68418.0,0.497276]
[1729296882413,0.0025,68419.0,68418.0,0.465576]
[1729296882610,0.0025,68419.0,68418.0,0.433876]
[1729296883019,0.0025,68419.0,68418.0,0.073076]
[1729296883226,0.0025,68419.0,68418.0,0.433876]
[1729296884724,0.0025,68419.0,68418.0,0.073076]
[1729296885519,0.511556,68418.0,68396.0,0.4708]
[1729296885723,0.11,68405.0,68396.0,0.47156]
[1729296885927,0.1101,68405.0,68404.0,0.07528354]
[1729296892929,0.12567402,68405.0,68404.0,0.07528354]
[1729296895026,0.12567402,68405.0,68404.0,0.073091]
[1729296900147,0.19876402,68405.0,68404.0,0.073091]
[1729296900645,0.72567402,68405.0,68391.0,0.073105]
[1729296900846,0.183093,68402.0,68400.0,0.073095]
[1729296901044,0.183293,68402.0,68400.0,0.073095]
[1729296901238,0.783293,68402.0,68400.0,0.073095]
[1729296901848,0.783293,68402.0,68401.0,0.073194]
[1729296902346,0.183293,68402.0,68401.0,0.073194]
[1729296904051,0.073293,68402.0,68401.0,0.073194]
[1729296904360,0.183293,68402.0,68401.0,0.073194]
[1729296908949,0.183293,68402.0,68401.0,0.0001]
[1729296918646,0.073293,68402.0,68401.0,0.0001]
[1729296918849,0.183293,68402.0,68401.0,0.0001]
[1729296923452,0.293293,68402.0,68401.0,0.0001]
[1729296925960,0.073293,68402.0,68401.0,0.0001]
[1729296926260,0.293293,68402.0,68401.0,0.0001]
[1729296926752,0.073293,68402.0,68401.0,0.0001]
[1729296927256,0.183293,68402.0,68401.0,0.0001]
[1729296929962,0.073293,68402.0,68401.0,0.073194]
[1729296930153,0.0002,68402.0,68401.0,0.073194]
[1729296930465,0.1102,68402.0,68401.0,0.073194]
[1729296931665,0.293293,68402.0,68401.0,0.0001]
[1729296932260,0.183293,68402.0,68401.0,0.0001]
[1729296932660,0.293293,68402.0,68401.0,0.0001]
[1729296932959,0.183293,68402.0,68401.0,0.0001]
[1729296940168,0.293293,68402.0,68393.0,0.0301]
[1729296940371,0.293102,68394.0,68393.0,0.0301]
[1729296940672,0.293202,68394.0,68393.0,0.0301]
[1729296941969,0.293202,68394.0,68393.0,0.103203]
[1729296942176,0.2201,68394.0,68393.0,0.103203]
[1729296944278,0.293202,68394.0,68393.0,0.103203]
[1729296946265,0.30912915,68394.0,68393.0,0.103203]
[1729296951978,0.23602715,68394.0,68392.0,0.0331]
[1729296952179,0.073203,68393.0,68392.0,0.073103]
[1729296953875,0.073203,68393.0,68392.0,0.433903]
[1729296954076,0.183203,68393.0,68392.0,0.433903]
[1729296954279,0.073203,68393.0,68392.0,0.433903]
[1729296954476,0.183203,68393.0,68392.0,0.433903]
[1729296954783,0.073203,68393.0,68392.0,0.433903]
[1729296957985,0.183203,68393.0,68392.0,0.433903]
[1729296960980,0.183203,68393.0,68392.0,0.073103]
[1729296966990,0.0001,68393.0,68392.0,0.073103]
[1729296970887,0.0001,68393.0,68392.0,0.673103]
[1729296971281,0.0001,68393.0,68392.0,0.073103]
[1729296978587,0.073203,68393.0,68392.0,0.073103]
[1729296980592,0.0001,68393.0,68392.0,0.073103]
[1729296986601,0.073203,68393.0,68392.0,0.073103]
[1729296994193,0.0001,68393.0,68392.0,0.073103]
[1729297002008,0.0025,68393.0,68392.0,0.073103]
[1729297004003,0.0025,68393.0,68392.0,0.433903]
[1729297008707,0.075603,68393.0,68392.0,0.433903]
[1729297010312,0.075603,68393.0,68392.0,0.073103]
[1729297020522,0.0025,68393.0,68392.0,0.073103]
[1729297033328,0.075603,68393.0,68392.0,0.073103]
[1729297037430,0.0025,68393.0,68392.0,0.073103]
[1729297037930,0.0001,68393.0,68392.0,0.073103]
[1729297038331,0.073203,68393.0,68392.0,0.073103]
[1729297038530,0.0001,68393.0,68392.0,0.073103]
[1729297054332,0.1101,68393.0,68392.0,0.073103]
[1729297054537,0.1125,68393.0,68392.0,0.073103]
[1729297055341,0.185603,68393.0,68392.0,0.073103]
[1729297059640,0.1125,68393.0,68392.0,0.073103]
[1729297074644,0.1124,68393.0,68392.0,0.073103]
[1729297075047,0.0024,68393.0,68392.0,0.073103]
[1729297080542,0.0024,68393.0,68392.0,0.183103]
[1729297081753,0.00219324,68407.0,68406.0,0.073089]
[1729297081944,0.00219324,68407.0,68406.0,0.183089]
[1729297082145,0.00219324,68407.0,68404.0,0.07309]
[1729297082351,0.183191,68405.0,68404.0,0.07309]
[1729297086250,0.183191,68405.0,68401.0,0.073193]
[1729297086255,0.073092,68403.0,68401.0,0.073193]
[1729297086557,0.1101,68402.0,68401.0,0.0001]
[1729297087360,0.1101,68402.0,68401.0,0.073194]
[1729297088462,0.183193,68402.0,68401.0,0.073194]
[1729297090663,0.1101,68402.0,68401.0,0.073194]
[1729297091560,0.183193,68402.0,68401.0,0.073194]
[1729297093657,0.1101,68402.0,68401.0,0.073194]
[1729297095554,0.543993,68402.0,68401.0,0.0001]
[1729297105175,0.546393,68402.0,68401.0,0.0001]
[1729297107666,0.956033,68402.0,68401.0,0.0001]
[1729297110465,0.595233,68402.0,68401.0,0.0001]
[1729297110678,0.956033,68402.0,68401.0,0.0001]
[1729297111378,0.073104,68393.0,68391.0,0.073104]
[1729297111568,0.1101,68392.0,68391.0,0.073105]
[1729297115475,0.183204,68392.0,68391.0,0.073105]
[1729297115973,0.19890697,68392.0,68391.0,0.073105]
[1729297116471,0.19890697,68392.0,68389.0,0.0325]
[1729297116472,0.073106,68390.0,68389.0,0.0325]
[1729297116774,0.433906,68390.0,68389.0,0.0325]
[1729297116975,0.434006,68390.0,68389.0,0.0325]
[1729297122688,0.434006,68390.0,68383.0,0.0318]
[1729297122689,0.3609,68390.0,68383.0,0.104913]
[1729297122980,0.1101,68384.0,68383.0,0.104913]
[1729297123581,0.183212,68384.0,68383.0,0.104913]
[1729297123972,0.1101,68384.0,68383.0,0.104913]
[1729297128885,0.183212,68384.0,68383.0,0.104913]
[1729297129086,0.183212,68384.0,68383.0,0.0318]
[1729297129391,0.544012,68384.0,68383.0,0.0318]
[1729297129586,0.544012,68384.0,68378.0,0.105619]
[1729297129885,0.073218,68379.0,68378.0,0.105619]
[1729297133686,0.073218,68379.0,68377.0,0.00219345]
[1729297133687,0.073119,68378.0,68377.0,0.00219345]
[1729297133881,0.544019,68378.0,68377.0,0.00219345]
[1729297136584,0.4709,68378.0,68373.0,0.073124]
[1729297136788,0.073128,68370.0,68367.0,0.0327]
[1729297136992,0.11,68368.0,68367.0,0.105831]
[1729297137194,0.11,68368.0,68367.0,0.15479144]
[1729297137390,0.16869366,68368.0,68367.0,0.15479144]
[1729297140186,0.18479452,68368.0,68367.0,0.15479144]
[1729297140802,0.25792352,68368.0,68367.0,0.15479144]
[1729297141296,0.18479452,68368.0,68367.0,0.15479144]
[1729297142901,0.25792352,68368.0,68367.0,0.15479144]
[1729297146899,0.18479452,68368.0,68367.0,0.15479144]
[1729297148388,0.07479452,68368.0,68367.0,0.15479144]
[1729297148592,0.3608,68374.0,68373.0,0.073124]
[1729297148794,0.3608,68374.0,68373.0,0.183124]
[1729297148995,0.40976,68377.0,68376.0,0.073121]
[1729297149296,0.42531025,68377.0,68376.0,0.073121]
[1729297149491,0.42531025,68377.0,68376.0,0.183121]
[1729297149690,0.42531025,68377.0,68376.0,0.073121]
[1729297149896,0.53531025,68377.0,68376.0,0.073121]
[1729297151594,0.42531025,68377.0,68376.0,0.073121]
[1729297151790,0.42531025,68377.0,68376.0,0.183121]
[1729297153003,0.42531025,68377.0,68376.0,0.180721]
[1729297154200,0.42531025,68377.0,68376.0,0.070721]
[1729297157001,0.42531025,68377.0,68376.0,0.431521]
[1729297157908,0.42531025,68377.0,68376.0,0.070721]
[1729297160902,0.53531025,68377.0,68376.0,0.070721]
[1729297161911,0.53531025,68377.0,68376.0,0.431521]
[1729297162610,0.42531025,68377.0,68376.0,0.431521]
[1729297164511,0.02659221,68377.0,68376.0,0.541521]
[1729297166308,0.02659221,68377.0,68376.0,1.690281]
[1729297166513,0.00219421,68391.0,68390.0,0.073106]
[1729297166718,0.00219421,68391.0,68390.0,0.183106]
[1729297169913,0.3608,68403.0,68395.0,0.073101]
[1729297169914,0.4708,68403.0,68395.0,0.073101]
[1729297170102,0.4708,68403.0,68402.0,0.073093]
[1729297170912,0.4708,68403.0,68395.0,0.11]
[1729297170913,0.00104001,68406.0,68405.0,0.07309]
[1729297171105,0.01597459,68406.0,68403.0,0.11]
[1729297171413,0.11,68408.0,68407.0,0.073088]
[1729297172115,0.36299334,68410.0,68409.0,0.073086]
[1729297173517,0.00219334,68410.0,68409.0,0.073086]
[1729297174512,0.3608,68418.0,68417.0,0.073077]
[1729297174711,0.3608,68418.0,68417.0,0.183077]
[1729297175517,0.11104001,68424.0,68423.0,0.073071]
[1729297175715,0.11,68424.0,68423.0,0.073071]
[1729297177213,0.12603841,68424.0,68423.0,0.073071]
[1729297177413,0.01603841,68424.0,68423.0,0.073071]
[1729297177719,0.11,68427.0,68421.0,0.11]
[1729297177916,0.11,68427.0,68425.0,0.073069]
[1729297178723,0.4242,68429.0,68425.0,0.073069]
[1729297178914,0.01563203,68427.0,68425.0,0.073069]
[1729297179217,0.3608,68429.0,68425.0,0.073069]
[1729297179417,0.01594986,68433.0,68425.0,0.073069]
[1729297179610,0.3608,68437.0,68425.0,0.073069]
[1729297180714,0.01557037,68434.0,68425.0,0.073069]
[1729297181424,0.01557037,68434.0,68433.0,0.07306]
[1729297181614,0.3608,68437.0,68436.0,0.073057]
[1729297181820,0.3608,68437.0,68436.0,0.183057]
[1729297182620,0.073053,68440.0,68436.0,0.183057]
[1729297182621,0.073053,68440.0,68438.0,0.073054]
[1729297183421,0.08887122,68440.0,68438.0,0.073054]
[1729297184122,0.08887122,68440.0,68436.0,0.11]
[1729297185415,0.19887122,68440.0,68438.0,0.073054]
[1729297186720,0.073059,68435.0,68430.0,0.073063]
[1729297186919,0.073064,68429.0,68426.0,0.073067]
[1729297187115,0.11,68427.0,68426.0,0.073067]
[1729297187622,0.11,68427.0,68422.0,0.00219208]
[1729297187815,0.17,68425.0,68422.0,0.00219208]
[1729297188121,0.073071,68423.0,68422.0,0.00219208]
[1729297188312,0.073079,68415.0,68414.0,0.3608]
[1729297188517,0.073079,68415.0,68398.0,0.073096]
[1729297188518,0.07308,68414.0,68411.0,0.073083]
[1729297188909,0.0621,68413.0,68411.0,0.073083]
[1729297189522,0.073083,68412.0,68406.0,0.17]
[1729297189720,0.073083,68412.0,68409.0,0.073085]
[1729297189922,0.073083,68412.0,68410.0,0.073084]
[1729297190126,0.073083,68412.0,68411.0,0.073083]
[1729297190625,0.0621,68413.0,68412.0,0.073082]
[1729297191722,0.0778473,68413.0,68412.0,0.073082]
[1729297192229,0.1509283,68413.0,68412.0,0.073082]
[1729297193426,0.0778473,68413.0,68406.0,0.3608]
[1729297193612,0.073085,68410.0,68409.0,0.073085]
[1729297193815,0.17,68411.0,68410.0,0.073085]
[1729297194027,0.243083,68411.0,68410.0,0.073085]
[1729297195129,0.243083,68411.0,68410.0,0.070685]
[1729297195523,0.0778473,68413.0,68411.0,0.073083]
[1729297195921,0.0778473,68413.0,68412.0,0.073082]
[1729297200227,0.53196,68419.0,68412.0,0.17]
[1729297200228,0.36196,68419.0,68412.0,0.17]
[1729297200526,0.243079,68416.0,68414.0,0.073079]
[1729297202530,0.243079,68416.0,68406.0,0.3608]
[1729297202531,0.17,68416.0,68410.0,0.073084]
[1729297202729,0.17,68416.0,68406.0,0.3608]
[1729297202730,0.3608,68412.0,68411.0,0.073083]
[1729297204735,0.592,68412.0,68411.0,0.073083]
[1729297206538,0.422,68412.0,68411.0,0.073083]
[1729297206735,0.4376524,68412.0,68411.0,0.073083]
[1729297207326,0.073084,68411.0,68406.0,0.3608]
[1729297207628,0.073084,68411.0,68409.0,0.073085]
[1729297208229,0.4376524,68412.0,68411.0,0.073083]
[1729297212535,0.4073524,68412.0,68411.0,0.073083]
[1729297212735,0.3764524,68412.0,68411.0,0.073083]
[1729297214434,0.073086,68409.0,68408.0,0.073087]
[1729297214936,0.48749241,68412.0,68409.0,0.073085]
[1729297215130,0.4864524,68412.0,68409.0,0.073085]
[1729297215326,0.5595354,68412.0,68410.0,0.073084]
[1729297215530,0.4864524,68412.0,68410.0,0.073084]
[1729297215734,0.073083,68411.0,68410.0,0.073084]
[1729297216039,0.073085,68410.0,68406.0,0.3608]
[1729297217334,0.073085,68410.0,68409.0,0.073086]
[1729297220142,0.4864524,68412.0,68406.0,0.3608]
[1729297220332,0.073086,68409.0,68407.0,0.073088]
[1729297220729,0.4864524,68412.0,68406.0,0.3608]
[1729297220930,0.4864524,68412.0,68400.0,0.03269278]
[1729297220931,0.11,68407.0,68400.0,0.43608778]
[1729297221126,0.032,68411.0,68401.0,0.073094]
[1729297221330,0.073093,68402.0,68401.0,0.073094]
[1729297221941,0.073094,68401.0,68400.0,0.00219278]
[1729297222237,0.621694,68401.0,68393.0,0.3608]
[1729297222447,0.073106,68391.0,68387.0,0.073109]
[1729297222740,0.11,68388.0,68387.0,0.073109]
[1729297224145,0.11,68394.0,68385.0,0.11]
[1729297224437,0.073098,68398.0,68396.0,0.073099]
[1729297224641,0.08914416,68398.0,68396.0,0.073099]
[1729297225247,0.11,68397.0,68396.0,0.073099]
[1729297225934,0.08914416,68398.0,68396.0,0.073099]
[1729297226642,0.01604616,68398.0,68396.0,0.073099]
[1729297226832,0.073098,68397.0,68396.0,0.073099]
[1729297227231,0.433898,68397.0,68396.0,0.073099]
[1729297228240,0.433898,68397.0,68392.0,0.0654]
[1729297228542,0.433898,68397.0,68392.0,0.138503]
[1729297228739,0.3608,68397.0,68392.0,0.138503]
[1729297229042,0.0731,68396.0,68392.0,0.138503]
[1729297229735,0.073101,68395.0,68392.0,0.138503]
[1729297230945,0.073101,68395.0,68392.0,0.136103]
[1729297233944,0.073102,68394.0,68392.0,0.136103]
[1729297234531,0.073103,68393.0,68392.0,0.063]
[1729297235542,0.073103,68393.0,68390.0,0.073106]
[1729297235543,0.17,68395.0,68379.0,0.203]
[1729297235743,0.073106,68391.0,68381.0,0.0317]
[1729297236047,0.073106,68391.0,68390.0,0.073106]
[1729297236347,0.073106,68390.0,68381.0,0.0317]
[1729297236748,0.073106,68390.0,68388.0,0.073108]
[1729297237555,0.073106,68390.0,68389.0,0.073107]
[1729297237747,0.17,68391.0,68381.0,0.0317]
[1729297238142,0.17,68391.0,68389.0,0.073106]
[1729297238544,0.073104,68392.0,68389.0,0.073106]
[1729297239246,0.01604962,68399.0,68389.0,0.17]
[1729297239548,0.3608,68400.0,68398.0,0.073097]
[1729297240342,0.073096,68399.0,68398.0,0.073097]
[1729297243449,0.073098,68398.0,68395.0,0.0731]
[1729297244348,0.073098,68398.0,68393.0,0.032]
[1729297244555,0.17,68397.0,68396.0,0.073099]
[1729297244844,0.0731,68396.0,68393.0,0.032]
[1729297245056,0.0731,68396.0,68394.0,0.073101]
[1729297246246,0.0731,68396.0,68395.0,0.073101]
[1729297246948,0.17,68397.0,68386.0,0.0311]
[1729297247154,0.073102,68394.0,68386.0,0.0311]
[1729297247347,0.073102,68394.0,68392.0,0.073103]
[1729297247753,0.073102,68394.0,68386.0,0.0311]
[1729297248055,0.11,68393.0,68392.0,0.073104]
[1729297251058,0.073103,68393.0,68392.0,0.073104]
[1729297251256,0.0731,68396.0,68395.0,0.073101]
[1729297251458,0.3608,68399.0,68398.0,0.073097]
[1729297251754,0.3608,68399.0,68398.0,0.183097]
[1729297253751,0.3608,68399.0,68398.0,0.073097]
[1729297254158,0.01588382,68401.0,68400.0,0.073095]
[1729297254458,0.40964,68403.0,68402.0,0.073093]
[1729297257358,0.01570577,68403.0,68402.0,0.073093]
[1729297257560,0.073092,68404.0,68403.0,0.073092]
[1729297260250,0.3608,68406.0,68398.0,0.0623]
[1729297260447,0.3608,68406.0,68403.0,0.073092]
[1729297260662,0.3608,68406.0,68405.0,0.07309]
[1729297260862,0.433889,68406.0,68405.0,0.07309]
[1729297262159,0.3608,68406.0,68398.0,0.0623]
[1729297262358,0.07309,68405.0,68402.0,0.073093]
[1729297262560,0.07309,68405.0,68403.0,0.073092]
[1729297263362,0.073091,68404.0,68403.0,0.073092]
[1729297263561,0.243091,68404.0,68403.0,0.073092]
[1729297268166,0.073092,68403.0,68400.0,0.073095]
[1729297268369,0.073092,68403.0,68401.0,0.073094]
[1729297268767,0.073092,68403.0,68398.0,0.0623]
[1729297269066,0.073092,68403.0,68402.0,0.073093]
[1729297273865,0.183092,68403.0,68402.0,0.073093]
[1729297275265,0.183092,68403.0,68398.0,0.0304]
[1729297275266,0.0326,68405.0,68404.0,0.073091]
[1729297275464,0.3768776,68406.0,68405.0,0.07309]
[1729297275669,0.00219323,68417.0,68416.0,0.073078]
[1729297275971,0.3608,68426.0,68415.0,0.11]
[1729297276163,0.11,68417.0,68416.0,0.073077]
[1729297276375,0.11,68417.0,68411.0,0.433883]
[1729297276376,0.073079,68415.0,68411.0,0.433883]
[1729297276567,0.11,68414.0,68411.0,0.3608]
[1729297276770,0.11,68414.0,68413.0,0.073081]
[1729297280676,0.23565059,68414.0,68405.0,0.3608]
[1729297280884,0.4708,68406.0,68405.0,0.07309]
[1729297281677,0.4708,68406.0,68397.0,0.47168]
[1729297281876,0.11,68403.0,68397.0,0.47168]
[1729297282275,0.11,68403.0,68402.0,0.073093]
[1729297285182,0.183092,68403.0,68402.0,0.073093]
[1729297285482,0.073095,68400.0,68399.0,0.0752887]
[1729297285683,0.183095,68400.0,68399.0,0.0752887]
[1729297286077,0.543895,68400.0,68399.0,0.0752887]
[1729297286279,0.4708,68400.0,68399.0,0.0752887]
[1729297286585,0.4708,68400.0,68399.0,0.073096]
[1729297290888,0.11,68400.0,68399.0,0.073096]
[1729297291185,0.4708,68400.0,68399.0,0.073096]
[1729297291983,0.11,68400.0,68399.0,0.073096]
[1729297292186,0.4708,68400.0,68399.0,0.073096]
[1729297293389,0.3608,68400.0,68399.0,0.073096]
[1729297296584,0.11,68403.0,68401.0,0.073094]
[1729297302395,0.11,68403.0,68402.0,0.073093]
[1729297314499,0.073092,68404.0,68403.0,0.073092]
[1729297315302,0.01596056,68406.0,68404.0,0.073091]
[1729297315501,0.11,68405.0,68404.0,0.073091]
[1729297317596,0.18309,68405.0,68404.0,0.073091]
[1729297319692,0.11,68405.0,68404.0,0.073091]
[1729297319901,0.37778566,68408.0,68407.0,0.073088]
[1729297320208,0.37662566,68408.0,68407.0,0.073088]
[1729297320597,0.48662566,68408.0,68407.0,0.073088]
[1729297320802,0.12582566,68408.0,68407.0,0.073088]
[1729297321703,0.40956,68413.0,68407.0,0.183088]
[1729297322003,0.42529709,68413.0,68412.0,0.073082]
[1729297326309,0.40956,68413.0,68412.0,0.073082]
[1729297326512,0.40956,68413.0,68412.0,0.183082]
[1729297326706,0.40956,68413.0,68412.0,0.073082]
[1729297327401,0.40956,68413.0,68412.0,0.183082]
[1729297327797,0.00219316,68419.0,68412.0,0.183082]
[1729297328114,0.073061,68432.0,68421.0,0.073072]
[1729297328412,0.073062,68431.0,68430.0,0.073062]
[1729297328705,0.11,68432.0,68430.0,0.073062]
[1729297328909,0.44932752,68435.0,68434.0,0.073059]
[1729297328910,0.37738853,68435.0,68434.0,0.073059]
[1729297329097,0.37626852,68435.0,68434.0,0.183059]
[1729297330312,0.3608,68435.0,68434.0,0.183059]
[1729297330504,0.3608,68442.0,68441.0,0.073051]
[1729297330702,0.07523572,68449.0,68445.0,0.073047]
[1729297330896,0.07523572,68449.0,68445.0,0.183047]
[1729297331406,0.01818623,68449.0,68447.0,0.073045]
[1729297332105,0.09122923,68449.0,68440.0,0.3608]
[1729297332411,0.11,68448.0,68442.0,0.11]
[1729297332796,0.11,68448.0,68445.0,0.073047]
[1729297332999,0.11,68448.0,68442.0,0.11]
[1729297333204,0.11,68448.0,68446.0,0.073046]
[1729297333412,0.09122923,68449.0,68447.0,0.073045]
[1729297333413,0.01818623,68449.0,68447.0,0.073045]
[1729297333799,0.09122923,68449.0,68446.0,0.11]
[1729297335008,0.00219272,68449.0,68448.0,0.183044]
[1729297335208,0.00219272,68449.0,68448.0,0.293044]
[1729297335416,0.00219272,68449.0,68448.0,1.221324]
[1729297335707,0.3608,68463.0,68462.0,0.073029]
[1729297335908,0.37696424,68463.0,68462.0,0.073029]
[1729297337114,0.3608,68463.0,68462.0,0.073029]
[1729297337510,0.01590695,68465.0,68464.0,0.073027]
[1729297337705,0.3608,68471.0,68464.0,0.11]
[1729297337901,0.3608,68471.0,68466.0,0.073024]
[1729297338214,0.3608,68471.0,68470.0,0.073021]
[1729297338408,0.3608,68471.0,68467.0,0.17]
[1729297338606,0.3608,68471.0,68470.0,0.073021]
[1729297344811,0.3608,68471.0,68470.0,0.243021]
[1729297346318,0.43704298,68478.0,68477.0,0.073013]
[1729297346319,0.36403098,68478.0,68477.0,0.073013]
[1729297346615,0.37843736,68478.0,68477.0,0.073013]
[1729297347014,0.073014,68477.0,68473.0,0.073016]
[1729297347207,0.17,68477.0,68473.0,0.073016]
[1729297347418,0.073018,68473.0,68464.0,0.0655]
[1729297347719,0.073018,68473.0,68470.0,0.07302]
[1729297350318,0.073019,68472.0,68470.0,0.07302]
[1729297350706,0.073017,68474.0,68470.0,0.07302]
[1729297351520,0.073014,68476.0,68470.0,0.07302]
[1729297351916,0.103316,68475.0,68470.0,0.07302]
[1729297352120,0.073017,68474.0,68470.0,0.07302]
[1729297352719,0.073017,68474.0,68471.0,0.073019]
[1729297352932,0.0303,68475.0,68471.0,0.073019]
[1729297353115,0.073018,68473.0,68471.0,0.073019]
[1729297353320,0.0603,68472.0,68471.0,0.073019]
[1729297357925,0.048589,68474.0,68473.0,0.073017]
[1729297358524,0.12751082,68474.0,68473.0,0.073017]
[1729297364531,0.21972126,68474.0,68473.0,0.073017]
[1729297365627,0.32972126,68474.0,68470.0,0.00076]
[1729297365821,0.073022,68469.0,68461.0,0.11]
[1729297366128,0.17113226,68468.0,68464.0,0.11]
[1729297366329,0.17075435,68467.0,68466.0,0.073024]
[1729297368432,0.17075435,68467.0,68464.0,0.11]
[1729297368733,0.17075435,68466.0,68465.0,0.073026]
[1729297369329,0.24377935,68466.0,68465.0,0.073026]
[1729297369536,0.15203964,68466.0,68465.0,0.073026]
[1729297369723,0.073028,68464.0,68463.0,0.073027]
[1729297369930,0.15204264,68464.0,68463.0,0.073027]
[1729297370533,0.18901464,68464.0,68458.0,0.0305]
[1729297370727,0.183029,68462.0,68461.0,0.073028]
[1729297370926,0.26204364,68462.0,68461.0,0.073028]
[1729297371122,0.15204364,68462.0,68461.0,0.073028]
[1729297373429,0.07901464,68462.0,68461.0,0.073028]
[1729297376332,0.073027,68464.0,68458.0,0.11]
[1729297376636,0.07772766,68463.0,68462.0,0.073029]
[1729297377437,0.073027,68464.0,68462.0,0.073029]
[1729297380632,0.073028,68463.0,68462.0,0.073029]
[1729297382944,0.073033,68458.0,68456.0,0.0312]
[1729297383148,0.073036,68456.0,68454.0,0.073037]
[1729297383341,0.11,68455.0,68454.0,0.073037]
[1729297385243,0.183033,68459.0,68456.0,0.073035]
[1729297385435,0.11,68459.0,68456.0,0.073035]
[1729297385640,0.073034,68458.0,68456.0,0.073035]
[1729297386345,0.073034,68458.0,68452.0,0.11]
[1729297386545,0.073034,68458.0,68457.0,0.073034]
[1729297389338,0.08847911,68458.0,68457.0,0.073034]
[1729297394957,0.01544511,68458.0,68457.0,0.073034]